fUSD/lending_fUSD_20251014
["ID","MTS","AMOUNT","RATE_DAILY","PERIOD"]
[391207360,1760420846493,2301.0,0.00012749,2]
[391207480,1760421031515,-267.7,0.00013699,2]
[391207481,1760421031525,-300.0,0.00017313,2]
[391207482,1760421031535,-218.51695819,0.00017323,2]
[391207483,1760421031547,-565.62452799,0.00017323,2]
[391207484,1760421031573,-415.85851382,0.00017323,2]
[391207485,1760421031583,-263.41598072,0.00017324,2]
[391207486,1760421031712,-1592.24780196,0.00017324,2]
[391207487,1760421031751,-2722.25683639,0.00017324,2]
[391207488,1760421031763,-4673.68233724,0.00017324,2]
[391207489,1760421031772,-399.22272638,0.00018196,2]
[391207490,1760421031782,-300.0,0.00019033,2]
[391207491,1760421031792,-237.5416283,0.0002,2]
[391207492,1760421031802,-267.7,0.00020187,2]
[391207493,1760421031811,-177.75,0.00020435,2]
[391207494,1760421031821,-944.00102358,0.00023232,2]
[391207495,1760421031830,-257.91778498,0.00023232,2]
[391207496,1760421031840,-250.0,0.00023232,2]
[391207497,1760421031849,-320.58445823,0.00023368,2]
[391207498,1760421031858,-3448.85504129,0.00023368,2]
[391207500,1760421031877,-511.71246314,0.00023368,2]
[391207516,1760421038119,-695.0162125,0.00017324,2]
[391207517,1760421038128,-538.88523328,0.00023368,2]
[391207518,1760421038140,-6132.95726229,0.00023368,2]
[391207519,1760421038149,-150.0,0.00024633,2]
[391207520,1760421038159,-150.0,0.00024633,2]
[391207521,1760421038169,-150.0,0.00024633,2]
[391207522,1760421038179,-150.00000001,0.00024633,2]
[391207523,1760421038189,-150.0,0.00024633,2]
[391207524,1760421038198,-150.00000001,0.00024633,2]
[391207525,1760421038207,-154.0727702,0.00024633,2]
[391207526,1760421038216,-175.0,0.00024712,120]
[391207527,1760421038226,-168.0,0.00024891,7]
[391207528,1760421038235,-500.0,0.00024932,2]
[391207529,1760421038244,-1039.61,0.00025,2]
[391207530,1760421038254,-168.0,0.0002506,2]
[391207531,1760421038263,-168.0,0.00025569,2]
[391207532,1760421038272,-168.0,0.00025697,2]
[391207533,1760421038281,-158.62,0.00025755,2]
[391207534,1760421038290,-994.19,0.00025801,2]
[391207535,1760421038300,-5000.0,0.00025817,2]
[391207536,1760421038309,-446.81,0.00025905,30]
[391207537,1760421038318,-885.0,0.00026,120]
[391207538,1760421038328,-230.96454682,0.00026027,2]
[391207539,1760421038336,-230.96454682,0.00026137,2]
[391207540,1760421038345,-168.0,0.00026141,2]
[391207541,1760421038355,-150.0,0.0002616,2]
[391207542,1760421038364,-1099.5,0.0002616,12]
[391207543,1760421038373,-4000.0,0.00026192,2]
[391207544,1760421038383,-230.96454682,0.00026247,2]
[391207545,1760421038392,-230.96454682,0.00026329,2]
[391207546,1760421038401,-777.0,0.00026337,7]
[391207547,1760421038411,-230.96454682,0.00026438,2]
[391207548,1760421038421,-402.0,0.00026468,7]
[391207549,1760421038430,-161.0,0.000265,20]
[391207550,1760421038440,-161.0,0.000265,20]
[391207551,1760421038449,-61.107896,0.00026528,2]
[391207552,1760421038468,-106.892104,0.00026528,2]
[391207553,1760421038478,-408.0,0.00026548,2]
[391207554,1760421038487,-230.96454682,0.00026548,2]
[391207555,1760421038497,-2974.62673155,0.00026575,2]
[391207556,1760421038506,-876.85966555,0.00026588,2]
[391207557,1760421038515,-150.0,0.00026603,2]
[391207558,1760421038525,-150.0,0.0002663,2]
[391207559,1760421038534,-230.96454682,0.00026658,2]
[391207560,1760421038544,-267.7,0.00026676,2]
[391207561,1760421038553,-164.07,0.00026721,2]
[391207562,1760421038563,-230.96454682,0.00026767,2]
[391207563,1760421038572,-230.96454682,0.00026877,2]
[391207564,1760421038581,-478.84913819,0.00026936,2]
[391207565,1760421038591,-230.96454682,0.00026959,2]
[391207566,1760421038600,-474.58,0.00026986,2]
[391207567,1760421038610,-694.95,0.00026986,2]
[391207568,1760421038619,-694.95,0.00026986,2]
[391207569,1760421038629,-474.58,0.00026986,2]
[391207570,1760421038639,-629.7,0.00026986,2]
[391207571,1760421038648,-474.58,0.00026986,2]
[391207572,1760421038657,-473.86,0.00026986,2]
[391207573,1760421038667,-9765.46,0.00027,2]
[391207574,1760421038678,-800.0,0.00027,120]
[391207575,1760421038688,-160.0,0.00027,30]
[391207576,1760421038698,-160.0,0.00027,30]
[391207577,1760421038707,-262.49627057,0.00027,2]
[391207578,1760421038717,-2141.1017926,0.00027018,2]
[391207579,1760421038726,-15668.4472943,0.00027018,2]
[391207581,1760421038736,-17129.6901807,0.00027018,2]
[391207582,1760421038745,-14550.236211,0.00027018,2]
[391207583,1760421038755,-402.0,0.00027024,2]
[391207584,1760421038765,-644.04407748,0.00027032,4]
[391207585,1760421038775,-46230.72624621,0.00027038,2]
[391207586,1760421038791,-1031.71206541,0.00027038,2]
[391207587,1760421038803,-8188.64386908,0.00027038,2]
[391207588,1760421038815,-4282.956336,0.00027038,2]
[391207589,1760421038826,-5383.43153765,0.00027038,2]
[391207590,1760421038837,-2245.49488229,0.00027038,2]
[391207591,1760421038849,-22186.48563285,0.00027038,2]
[391207601,1760421039892,-2046.24258855,0.00027038,2]
[391207602,1760421039907,-319.7803657,0.00027038,2]
[391207603,1760421039918,-1529.0169867,0.00027038,2]
[391207604,1760421039931,-318.8230133,0.00027038,2]
[391207605,1760421039942,-4644.4021098,0.00027038,2]
[391207606,1760421039968,-144787.79709837,0.00027038,2]
[391207608,1760421039979,-832.35532283,0.00027038,2]
[391207614,1760421042492,-392.29490377,0.00027038,2]
[391207615,1760421042589,-47000.08626588,0.00027038,2]
[391207655,1760421050829,-398764.45659558,0.00027038,2]
[391207656,1760421050839,-816.28,0.00027041,2]
[391207657,1760421050849,-200.0,0.00027064,2]
[391207658,1760421050859,-1000.0,0.00027068,2]
[391207659,1760421050869,-230.96454682,0.00027068,2]
[391207660,1760421050878,-690184.70581997,0.00027075,2]
[391207661,1760421050888,-1436.657,0.00027096,2]
[391207662,1760421050897,-519.28742079,0.00027096,2]
[391207663,1760421050907,-21499.15648312,0.00027098,2]
[391207664,1760421050916,-239.71019802,0.000271,120]
[391207665,1760421050926,-153.44437881,0.00027102,3]
[391207666,1760421050940,-690184.70581997,0.00027108,2]
[391207667,1760421050951,-30660.9822575,0.00027113,2]
[391207668,1760421050960,-25851.40234087,0.00027116,2]
[391207669,1760421050970,-525.08,0.0002712,2]
[391207670,1760421050979,-664.9635845,0.00027123,30]
[391207671,1760421050991,-18100.3584914,0.00027132,2]
[391207672,1760421051001,-438.801,0.00027139,120]
[391207673,1760421051010,-32788.08023809,0.0002715,2]
[391207674,1760421051019,-30660.9822575,0.00027151,2]
[391207675,1760421051029,-25851.40234087,0.00027151,2]
[391207676,1760421051039,-155.78622624,0.00027152,2]
[391207677,1760421051048,-242.0,0.00027154,2]
[391207678,1760421051058,-25851.40234087,0.00027157,2]
[391207679,1760421051067,-519.28742079,0.00027161,2]
[391207680,1760421051077,-225.6261432,0.00027168,2]
[391207681,1760421051087,-230.96454682,0.00027178,2]
[391207682,1760421051096,-155.78622624,0.00027179,2]
[391207683,1760421051106,-30660.9822575,0.00027183,2]
[391207684,1760421051115,-32788.08023809,0.00027184,2]
[391207685,1760421051124,-3874.69727948,0.00027187,2]
[391207686,1760421051134,-155.56,0.0002719,7]
[391207687,1760421051143,-70676.93588168,0.0002719,2]
[391207688,1760421051153,-21499.15648312,0.00027197,2]
[391207689,1760421051162,-644.04407748,0.00027197,4]
[391207690,1760421051171,-160.40314103,0.00027197,2]
[391207691,1760421051183,-3874.69727948,0.00027199,2]
[391207692,1760421051193,-301.0,0.000272,2]
[391207693,1760421051202,-167.80672911,0.00027223,7]
[391207694,1760421051212,-150.0,0.00027233,2]
[391207695,1760421051222,-2500.0,0.00027256,7]
[391207696,1760421051231,-2500.0,0.00027265,7]
[391207697,1760421051241,-1425.0,0.00027272,2]
[391207698,1760421051250,-330.07541042,0.00027273,2]
[391207699,1760421051260,-2500.0,0.00027274,7]
[391207700,1760421051269,-9106.1654446,0.00027277,2]
[391207701,1760421051279,-2276.54136115,0.00027281,2]
[391207702,1760421051288,-2500.0,0.00027282,7]
[391207703,1760421051297,-151.0,0.00027284,7]
[391207704,1760421051306,-963.00652265,0.00027285,2]
[391207705,1760421051318,-401.5201188,0.00027285,2]
[391207706,1760421051332,-1000.0,0.00027286,2]
[391207707,1760421051342,-1000.0,0.00027286,2]
[391207708,1760421051351,-22765.4136115,0.00027286,2]
[391207709,1760421051361,-5000.0,0.00027287,2]
[391207710,1760421051370,-172456.8652,0.00027287,2]
[391207711,1760421051379,-2276.54136115,0.00027287,2]
[391207712,1760421051388,-3384.0,0.0002729,2]
[391207713,1760421051398,-9106.1654446,0.0002729,2]
[391207714,1760421051407,-2500.0,0.00027291,7]
[391207715,1760421051416,-55555.0,0.00027296,3]
[391207716,1760421051426,-898.03721228,0.00027297,2]
[391207717,1760421051440,-963.00652265,0.00027297,2]
[391207718,1760421051449,-176.42419016,0.00027297,5]
[391207719,1760421051459,-160.40314103,0.00027297,2]
[391207720,1760421051468,-437.33312588,0.000273,7]
[391207721,1760421051478,-5800.0,0.000273,2]
[391207722,1760421051487,-2500.0,0.000273,7]
[391207723,1760421051496,-5800.0,0.000273,2]
[391207724,1760421051506,-722.06298046,0.000273,7]
[391207725,1760421051516,-4580.12781011,0.000273,2]
[391207726,1760421051525,-2500.0,0.000273,7]
[391207727,1760421051535,-2276.54136115,0.00027301,2]
[391207728,1760421051544,-1085.81258962,0.0002731,2]
[391207729,1760421051554,-1425.0,0.00027311,2]
[391207730,1760421051563,-1425.0,0.0002734,2]
[391207731,1760421051574,-154.12747994,0.0002737,4]
[391207732,1760421051583,-150.0,0.0002737,4]
[391207733,1760421051593,-500.0,0.00027373,2]
[391207734,1760421051602,-500.0,0.00027373,2]
[391207735,1760421051611,-31871.5790561,0.00027377,2]
[391207736,1760421051622,-168.0,0.00027387,2]
[391207737,1760421051633,-158.0547627,0.00027387,2]
[391207738,1760421051643,-209.01,0.0002739,120]
[391207739,1760421051652,-500.0,0.00027394,2]
[391207740,1760421051662,-500.0,0.00027394,2]
[391207741,1760421051672,-500.0,0.00027394,2]
[391207742,1760421051685,-500.0,0.00027394,2]
[391207743,1760421051695,-150.0,0.00027394,2]
[391207744,1760421051704,-500.0,0.00027394,2]
[391207745,1760421051714,-150.0,0.00027394,2]
[391207746,1760421051723,-150.0,0.00027394,2]
[391207747,1760421051733,-150.0,0.00027394,120]
[391207748,1760421051743,-150.0,0.00027394,120]
[391207749,1760421051752,-151.65324234,0.00027394,120]
[391207750,1760421051762,-150.0,0.00027394,2]
[391207751,1760421051772,-150.0,0.00027394,2]
[391207752,1760421051781,-150.0,0.00027394,2]
[391207753,1760421051791,-500.0,0.00027394,2]
[391207754,1760421051800,-166.0,0.00027394,2]
[391207755,1760421051810,-500.0,0.00027394,2]
[391207756,1760421051820,-150.0,0.00027394,2]
[391207757,1760421051830,-10000.0,0.00027396,3]
[391207758,1760421051840,-2174834.68076105,0.00027397,8]
[391207759,1760421051849,-5417.69971723,0.00027397,2]
[391207760,1760421051858,-515.22,0.00027397,2]
[391207761,1760421051867,-525.54,0.00027397,2]
[391207762,1760421051876,-523.12,0.00027397,2]
[391207763,1760421051886,-500.0,0.00027397,7]
[391207764,1760421051895,-500.0,0.00027397,7]
[391207765,1760421051904,-500.0,0.00027397,7]
[391207766,1760421051914,-500.0,0.00027397,7]
[391207767,1760421051923,-500.0,0.00027397,7]
[391207768,1760421051934,-500.0,0.00027397,7]
[391207769,1760421051945,-500.0,0.00027397,7]
[391207770,1760421051956,-500.0,0.00027397,7]
[391207771,1760421051965,-500.0,0.00027397,7]
[391207772,1760421051974,-500.0,0.00027397,7]
[391207773,1760421051983,-500.0,0.00027397,7]
[391207774,1760421051993,-500.0,0.00027397,7]
[391207775,1760421052002,-500.0,0.00027397,7]
[391207776,1760421052012,-500.0,0.00027397,7]
[391207777,1760421052021,-500.0,0.00027397,7]
[391207778,1760421052032,-500.0,0.00027397,7]
[391207779,1760421052041,-500.0,0.00027397,7]
[391207780,1760421052051,-500.0,0.00027397,7]
[391207781,1760421052061,-500.0,0.00027397,7]
[391207782,1760421052172,-500.0,0.00027397,7]
[391207783,1760421052183,-313.46,0.00027397,7]
[391207784,1760421052192,-739.74,0.00027397,7]
[391207785,1760421052201,-739.74,0.00027397,7]
[391207786,1760421052210,-739.74,0.00027397,7]
[391207787,1760421052219,-739.74,0.00027397,7]
[391207788,1760421052229,-739.74,0.00027397,7]
[391207789,1760421052239,-739.74,0.00027397,7]
[391207790,1760421052248,-739.74,0.00027397,7]
[391207791,1760421052258,-739.74,0.00027397,7]
[391207792,1760421052268,-739.74,0.00027397,7]
[391207793,1760421052277,-739.74,0.00027397,7]
[391207794,1760421052286,-739.74,0.00027397,7]
[391207795,1760421052295,-739.74,0.00027397,7]
[391207796,1760421052304,-739.74,0.00027397,7]
[391207797,1760421052313,-739.74,0.00027397,7]
[391207798,1760421052324,-739.74,0.00027397,7]
[391207799,1760421052336,-739.74,0.00027397,7]
[391207800,1760421052345,-739.74,0.00027397,7]
[391207801,1760421052355,-739.74,0.00027397,7]
[391207802,1760421052365,-739.74,0.00027397,7]
[391207803,1760421052374,-739.74,0.00027397,7]
[391207804,1760421052383,-739.74,0.00027397,7]
[391207805,1760421052393,-739.74,0.00027397,7]
[391207806,1760421052404,-739.74,0.00027397,7]
[391207807,1760421052413,-739.88887644,0.00027397,7]
[391207808,1760421052423,-500.0,0.00027397,7]
[391207809,1760421052436,-500.0,0.00027397,7]
[391207810,1760421052445,-500.0,0.00027397,7]
[391207811,1760421052454,-500.0,0.00027397,7]
[391207812,1760421052463,-500.0,0.00027397,7]
[391207813,1760421052472,-500.0,0.00027397,7]
[391207814,1760421052481,-500.0,0.00027397,7]
[391207815,1760421052497,-500.0,0.00027397,7]
[391207816,1760421052511,-500.0,0.00027397,7]
[391207817,1760421052520,-500.0,0.00027397,7]
[391207818,1760421052532,-500.0,0.00027397,7]
[391207819,1760421052542,-500.0,0.00027397,7]
[391207820,1760421052553,-500.0,0.00027397,7]
[391207821,1760421052563,-247.95245845,0.00027397,7]
[391207822,1760421052572,-411.18919374,0.00027397,7]
[391207823,1760421052581,-598.15,0.00027397,7]
[391207824,1760421052591,-531.49,0.00027397,7]
[391207825,1760421052600,-531.49,0.00027397,7]
[391207826,1760421052610,-531.49,0.00027397,7]
[391207827,1760421052620,-531.49,0.00027397,7]
[391207828,1760421052629,-531.49,0.00027397,7]
[391207829,1760421052639,-531.49,0.00027397,7]
[391207830,1760421052648,-531.49,0.00027397,7]
[391207831,1760421052658,-531.49,0.00027397,7]
[391207832,1760421052667,-531.49,0.00027397,7]
[391207833,1760421052677,-531.49,0.00027397,7]
[391207834,1760421052689,-531.49,0.00027397,7]
[391207835,1760421052698,-531.49,0.00027397,7]
[391207836,1760421052708,-531.49,0.00027397,7]
[391207837,1760421052717,-531.49,0.00027397,7]
[391207838,1760421052727,-531.49,0.00027397,7]
[391207839,1760421052736,-500.0,0.00027397,7]
[391207840,1760421052745,-326.66,0.00027397,7]
[391207841,1760421052754,-500.0,0.00027397,7]
[391207842,1760421052764,-515.17188499,0.00027397,7]
[391207843,1760421052773,-500.0,0.00027397,7]
[391207844,1760421052783,-159.19,0.00027397,7]
[391207845,1760421052792,-500.0,0.00027397,7]
[391207846,1760421052801,-500.0,0.00027397,7]
[391207847,1760421052811,-500.0,0.00027397,7]
[391207848,1760421052820,-500.0,0.00027397,7]
[391207849,1760421052830,-500.0,0.00027397,7]
[391207850,1760421052839,-500.0,0.00027397,7]
[391207851,1760421052848,-500.0,0.00027397,7]
[391207852,1760421052857,-500.0,0.00027397,7]
[391207853,1760421052867,-500.0,0.00027397,7]
[391207854,1760421052876,-500.0,0.00027397,7]
[391207855,1760421052885,-500.0,0.00027397,7]
[391207856,1760421052894,-500.0,0.00027397,7]
[391207857,1760421052903,-500.0,0.00027397,7]
[391207858,1760421052912,-500.0,0.00027397,7]
[391207859,1760421052922,-500.0,0.00027397,7]
[391207860,1760421052932,-500.0,0.00027397,7]
[391207861,1760421052941,-500.0,0.00027397,7]
[391207862,1760421052951,-500.0,0.00027397,7]
[391207863,1760421052960,-500.0,0.00027397,7]
[391207864,1760421052970,-500.0,0.00027397,7]
[391207865,1760421052988,-500.0,0.00027397,7]
[391207866,1760421053000,-500.0,0.00027397,7]
[391207867,1760421053010,-577.0,0.00027397,7]
[391207868,1760421053020,-500.0,0.00027397,7]
[391207869,1760421053029,-500.0,0.00027397,7]
[391207870,1760421053039,-500.0,0.00027397,7]
[391207871,1760421053049,-500.0,0.00027397,7]
[391207872,1760421053058,-500.0,0.00027397,7]
[391207873,1760421053069,-500.0,0.00027397,7]
[391207874,1760421053078,-500.0,0.00027397,7]
[391207875,1760421053088,-500.0,0.00027397,7]
[391207876,1760421053097,-500.0,0.00027397,7]
[391207877,1760421053107,-500.0,0.00027397,7]
[391207878,1760421053117,-500.0,0.00027397,7]
[391207879,1760421053126,-500.0,0.00027397,7]
[391207880,1760421053135,-346.88883838,0.00027397,7]
[391207881,1760421053145,-500.0,0.00027397,7]
[391207882,1760421053154,-500.0,0.00027397,7]
[391207883,1760421053163,-500.0,0.00027397,7]
[391207884,1760421053173,-500.0,0.00027397,7]
[391207885,1760421053183,-500.0,0.00027397,7]
[391207886,1760421053192,-500.0,0.00027397,7]
[391207887,1760421053201,-179.15,0.00027397,7]
[391207888,1760421053211,-500.0,0.00027397,7]
[391207889,1760421053220,-500.0,0.00027397,7]
[391207890,1760421053230,-500.0,0.00027397,7]
[391207891,1760421053239,-527.2921551,0.00027397,7]
[391207892,1760421053248,-500.0,0.00027397,7]
[391207893,1760421053258,-500.0,0.00027397,7]
[391207894,1760421053268,-500.0,0.00027397,7]
[391207895,1760421053282,-500.0,0.00027397,7]
[391207896,1760421053292,-500.0,0.00027397,7]
[391207897,1760421053302,-500.0,0.00027397,7]
[391207898,1760421053311,-412.76,0.00027397,7]
[391207899,1760421053322,-1244.02,0.00027397,7]
[391207900,1760421053334,-1244.02,0.00027397,7]
[391207901,1760421053343,-1244.02,0.00027397,7]
[391207902,1760421053353,-1244.02,0.00027397,7]
[391207903,1760421053362,-1244.02,0.00027397,7]
[391207904,1760421053371,-1244.02,0.00027397,7]
[391207905,1760421053381,-1244.02,0.00027397,7]
[391207906,1760421053390,-1244.02,0.00027397,7]
[391207907,1760421053399,-1244.02,0.00027397,7]
[391207908,1760421053409,-1244.02,0.00027397,7]
[391207909,1760421053418,-1244.02,0.00027397,7]
[391207910,1760421053428,-1244.02,0.00027397,7]
[391207911,1760421053439,-1244.02,0.00027397,7]
[391207912,1760421053450,-1244.02,0.00027397,7]
[391207913,1760421053459,-1244.02,0.00027397,7]
[391207914,1760421053469,-1244.02,0.00027397,7]
[391207915,1760421053479,-1244.02,0.00027397,7]
[391207916,1760421053489,-1244.02,0.00027397,7]
[391207917,1760421053499,-1244.02,0.00027397,7]
[391207918,1760421053509,-1244.02,0.00027397,7]
[391207919,1760421053519,-1244.02,0.00027397,7]
[391207920,1760421053529,-1244.02,0.00027397,7]
[391207921,1760421053538,-1244.02,0.00027397,7]
[391207922,1760421053549,-1244.02756897,0.00027397,7]
[391207923,1760421053559,-500.0,0.00027397,7]
[391207924,1760421053568,-500.0,0.00027397,7]
[391207925,1760421053578,-500.0,0.00027397,7]
[391207926,1760421053588,-500.0,0.00027397,7]
[391207927,1760421053597,-519.51554731,0.00027397,7]
[391207928,1760421053607,-500.0,0.00027397,7]
[391207929,1760421053616,-500.0,0.00027397,7]
[391207930,1760421053627,-500.0,0.00027397,7]
[391207931,1760421053636,-620.68,0.00027397,7]
[391207932,1760421053646,-500.0,0.00027397,7]
[391207933,1760421053656,-500.0,0.00027397,7]
[391207934,1760421053666,-500.0,0.00027397,7]
[391207935,1760421053676,-500.0,0.00027397,7]
[391207936,1760421053688,-500.0,0.00027397,7]
[391207937,1760421053698,-500.0,0.00027397,7]
[391207938,1760421053708,-500.0,0.00027397,7]
[391207939,1760421053718,-444.11943344,0.00027397,7]
[391207940,1760421053728,-500.0,0.00027397,7]
[391207941,1760421053738,-500.0,0.00027397,7]
[391207942,1760421053747,-500.0,0.00027397,7]
[391207943,1760421053757,-500.0,0.00027397,7]
[391207944,1760421053766,-500.0,0.00027397,7]
[391207945,1760421053776,-500.0,0.00027397,7]
[391207946,1760421053785,-500.0,0.00027397,7]
[391207947,1760421053795,-500.0,0.00027397,7]
[391207948,1760421053805,-500.0,0.00027397,7]
[391207949,1760421053815,-500.0,0.00027397,7]
[391207950,1760421053824,-546.1695671,0.00027397,7]
[391207951,1760421053834,-500.0,0.00027397,7]
[391207952,1760421053844,-500.0,0.00027397,7]
[391207953,1760421053854,-500.0,0.00027397,7]
[391207954,1760421053863,-500.0,0.00027397,7]
[391207955,1760421053873,-500.0,0.00027397,7]
[391207956,1760421053883,-500.0,0.00027397,7]
[391207957,1760421053892,-500.0,0.00027397,7]
[391207958,1760421053902,-500.0,0.00027397,7]
[391207959,1760421053912,-500.0,0.00027397,7]
[391207960,1760421053922,-500.0,0.00027397,7]
[391207961,1760421053932,-500.0,0.00027397,7]
[391207962,1760421053942,-500.0,0.00027397,7]
[391207963,1760421053951,-446.68524439,0.00027397,7]
[391207964,1760421053961,-833.94,0.00027397,7]
[391207965,1760421053971,-833.94,0.00027397,7]
[391207966,1760421053980,-833.94,0.00027397,7]
[391207967,1760421053990,-833.94,0.00027397,7]
[391207968,1760421054000,-833.94,0.00027397,7]
[391207969,1760421054009,-833.94,0.00027397,7]
[391207970,1760421054019,-833.94,0.00027397,7]
[391207971,1760421054028,-833.94,0.00027397,7]
[391207972,1760421054038,-833.94,0.00027397,7]
[391207973,1760421054048,-833.94,0.00027397,7]
[391207974,1760421054057,-833.94,0.00027397,7]
[391207975,1760421054067,-833.94,0.00027397,7]
[391207976,1760421054076,-833.94,0.00027397,7]
[391207977,1760421054086,-833.94,0.00027397,7]
[391207978,1760421054096,-833.94,0.00027397,7]
[391207979,1760421054105,-833.94,0.00027397,7]
[391207980,1760421054114,-833.94,0.00027397,7]
[391207981,1760421054124,-833.94,0.00027397,7]
[391207982,1760421054133,-833.94,0.00027397,7]
[391207983,1760421054143,-833.94,0.00027397,7]
[391207984,1760421054153,-833.94,0.00027397,7]
[391207985,1760421054163,-833.94,0.00027397,7]
[391207986,1760421054173,-833.94,0.00027397,7]
[391207987,1760421054185,-834.06536395,0.00027397,7]
[391207988,1760421054196,-500.0,0.00027397,7]
[391207989,1760421054206,-500.0,0.00027397,7]
[391207990,1760421054216,-500.0,0.00027397,7]
[391207991,1760421054227,-500.0,0.00027397,7]
[391207992,1760421054238,-500.0,0.00027397,7]
[391207993,1760421054248,-500.0,0.00027397,7]
[391207994,1760421054259,-500.0,0.00027397,7]
[391207995,1760421054270,-500.0,0.00027397,7]
[391207996,1760421054280,-500.0,0.00027397,7]
[391207997,1760421054289,-381.42312588,0.00027397,7]
[391207998,1760421054299,-549.45,0.00027397,7]
[391207999,1760421054308,-549.45,0.00027397,7]
[391208000,1760421054319,-549.45,0.00027397,7]
[391208001,1760421054330,-549.45,0.00027397,7]
[391208002,1760421054339,-549.45,0.00027397,7]
[391208003,1760421054349,-549.45,0.00027397,7]
[391208004,1760421054359,-549.45,0.00027397,7]
[391208005,1760421054368,-549.45,0.00027397,7]
[391208006,1760421054377,-549.45,0.00027397,7]
[391208007,1760421054387,-549.45,0.00027397,7]
[391208008,1760421054397,-549.45,0.00027397,7]
[391208009,1760421054407,-549.45,0.00027397,7]
[391208010,1760421054416,-549.45,0.00027397,7]
[391208011,1760421054425,-549.45,0.00027397,7]
[391208012,1760421054437,-549.45,0.00027397,7]
[391208013,1760421054446,-549.45,0.00027397,7]
[391208014,1760421054455,-549.45,0.00027397,7]
[391208015,1760421054465,-549.45,0.00027397,7]
[391208016,1760421054474,-549.45,0.00027397,7]
[391208017,1760421054484,-549.45,0.00027397,7]
[391208018,1760421054494,-549.45,0.00027397,7]
[391208019,1760421054503,-549.45,0.00027397,7]
[391208020,1760421054512,-549.45,0.00027397,7]
[391208021,1760421054522,-549.56430522,0.00027397,7]
[391208022,1760421054531,-541.109859,0.00027397,7]
[391208023,1760421054540,-500.0,0.00027397,7]
[391208024,1760421054549,-500.0,0.00027397,7]
[391208025,1760421054559,-500.0,0.00027397,7]
[391208026,1760421054568,-500.0,0.00027397,7]
[391208027,1760421054579,-500.0,0.00027397,7]
[391208028,1760421054588,-500.0,0.00027397,7]
[391208029,1760421054598,-500.0,0.00027397,7]
[391208030,1760421054609,-500.0,0.00027397,7]
[391208031,1760421054619,-500.0,0.00027397,7]
[391208032,1760421054630,-500.0,0.00027397,7]
[391208033,1760421054639,-500.0,0.00027397,7]
[391208034,1760421054648,-500.0,0.00027397,7]
[391208035,1760421054658,-500.0,0.00027397,7]
[391208036,1760421054667,-500.0,0.00027397,7]
[391208037,1760421054677,-500.0,0.00027397,7]
[391208038,1760421054690,-639.8,0.00027397,7]
[391208039,1760421054700,-500.0,0.00027397,7]
[391208040,1760421054710,-500.0,0.00027397,7]
[391208041,1760421054719,-500.0,0.00027397,7]
[391208042,1760421054729,-500.0,0.00027397,7]
[391208043,1760421054739,-500.0,0.00027397,7]
[391208044,1760421054748,-500.0,0.00027397,7]
[391208045,1760421054758,-500.0,0.00027397,7]
[391208046,1760421054768,-500.0,0.00027397,7]
[391208047,1760421054778,-500.0,0.00027397,7]
[391208048,1760421054787,-531.45,0.00027397,7]
[391208049,1760421054797,-500.0,0.00027397,7]